[Event "Early-Titled-Tuesday-Blitz-October-10-2023"]
[Site "Chess.com"]
[Date "2023.10.10"]
[Round "2"]
[White "MrTattaglia"]
[Black "lefonghua"]
[Result "1-0"]
[WhiteElo "2908"]
[BlackElo "2604"]
[TimeControl "180+1"]
[EndTime "8:18:24 PDT"]
[Termination "MrTattaglia won by resignation"]

1. d4 {[%clk 0:02:59.8]} 1... Nf6 {[%clk 0:02:59.9]} 2. c4 {[%clk 0:03:00.2]}
2... c5 {[%clk 0:02:59.8]} 3. d5 {[%clk 0:02:59.9]} 3... e6 {[%clk 0:03:00.4]}
4. Nc3 {[%clk 0:02:59.4]} 4... exd5 {[%clk 0:03:01]} 5. cxd5 {[%clk 0:03:00.3]}
5... d6 {[%clk 0:03:01.5]} 6. e4 {[%clk 0:03:00.3]} 6... g6 {[%clk 0:03:01.9]}
7. Nf3 {[%clk 0:03:00.7]} 7... Bg7 {[%clk 0:03:01]} 8. h3 {[%clk 0:03:00.9]}
8... a6 {[%clk 0:02:58.1]} 9. a4 {[%clk 0:02:59.7]} 9... Nbd7 {[%clk 0:02:58.4]}
10. Bd3 {[%clk 0:02:58.4]} 10... Nh5 {[%clk 0:02:57.7]} 11. O-O {[%clk
0:02:57.9]} 11... Ne5 {[%clk 0:02:57.7]} 12. Be2 {[%clk 0:02:57.7]} 12... Nxf3+
{[%clk 0:02:57.6]} 13. Bxf3 {[%clk 0:02:57.9]} 13... Qh4 {[%clk 0:02:58.3]} 14.
Bxh5 {[%clk 0:02:53.4]} 14... gxh5 {[%clk 0:02:59.2]} 15. Qf3 {[%clk 0:02:53.1]}
15... Be5 {[%clk 0:02:52.8]} 16. Ne2 {[%clk 0:02:51]} 16... Rg8 {[%clk
0:02:40.7]} 17. Nf4 {[%clk 0:02:31.5]} 17... Bxf4 {[%clk 0:02:21]} 18. Bxf4
{[%clk 0:02:29.2]} 18... Qxh3 {[%clk 0:01:58]} 19. Qxh3 {[%clk 0:02:27.4]} 19...
Bxh3 {[%clk 0:01:58.9]} 20. Kh2 {[%clk 0:02:18.2]} 20... Bg4 {[%clk 0:01:22.4]}
21. f3 {[%clk 0:02:17]} 21... Bd7 {[%clk 0:01:21.8]} 22. Bxd6 {[%clk 0:02:16.6]}
22... c4 {[%clk 0:01:19.1]} 23. a5 {[%clk 0:02:14.6]} 23... Bb5 {[%clk
0:01:12.5]} 24. Be5 {[%clk 0:02:12.1]} 24... Kd7 {[%clk 0:00:52.7]} 25. Rh1
{[%clk 0:02:07.6]} 25... Rg6 {[%clk 0:00:45.9]} 26. Kg1 {[%clk 0:02:04.4]} 26...
Rag8 {[%clk 0:00:43.8]} 27. Rh2 {[%clk 0:02:04.1]} 27... f5 {[%clk 0:00:37.9]}
28. Bc3 {[%clk 0:02:00.3]} 28... fxe4 {[%clk 0:00:34.5]} 29. fxe4 {[%clk
0:02:01.2]} 29... Rg4 {[%clk 0:00:27.8]} 30. Re1 {[%clk 0:02:00.8]} 30... h4
{[%clk 0:00:25.3]} 31. Kh1 {[%clk 0:02:00.1]} 31... Ba4 {[%clk 0:00:20.7]} 32.
e5 {[%clk 0:01:55.4]} 32... Bc2 {[%clk 0:00:21]} 33. Bb4 {[%clk 0:01:45.4]}
33... Be4 {[%clk 0:00:20.6]} 34. e6+ {[%clk 0:01:45.7]} 34... Ke8 {[%clk
0:00:17.3]} 35. d6 {[%clk 0:01:45.8]} 35... h3 {[%clk 0:00:12.7]} 36. d7+ {[%clk
0:01:35]} 36... Kd8 {[%clk 0:00:12.6]} 37. Bc5 {[%clk 0:01:27.9]} 37... Bxg2+
{[%clk 0:00:07.3]} 38. Kg1 {[%clk 0:01:18.1]} 38... Bd5+ {[%clk 0:00:04.7]} 39.
Kf2 {[%clk 0:01:18.5]} 39... Bxe6 {[%clk 0:00:03.1]} 40. Rxe6 {[%clk 0:01:17.3]}
40... Rg2+ {[%clk 0:00:03]} 41. Rxg2 {[%clk 0:01:16.4]} 41... hxg2 {[%clk
0:00:03.9]} 42. Kg1 {[%clk 0:01:13.8]} 42... Kxd7 {[%clk 0:00:04.1]} 43. Rh6
{[%clk 0:01:12.8]} 43... Rg5 {[%clk 0:00:03.6]} 44. Bb4 {[%clk 0:01:11.2]} 44...
Rb5 {[%clk 0:00:02.7]} 45. Bc3 {[%clk 0:01:11.1]} 45... Rg5 {[%clk 0:00:01.2]}
46. Rxh7+ {[%clk 0:01:10.5]} 46... Kc6 {[%clk 0:00:01.7]} 47. Rh6+ {[%clk
0:01:10.7]} 47... Kc7 {[%clk 0:00:01.5]} 48. Rf6 {[%clk 0:01:09.8]} 48... Rg4
{[%clk 0:00:01.9]} 49. Rh6 {[%clk 0:01:06.4]} 49... Kd7 {[%clk 0:00:02.3]} 50.
Rb6 {[%clk 0:01:03.4]} 50... Kc7 {[%clk 0:00:02.7]} 51. Be5+ {[%clk 0:01:02.5]}
51... Kc8 {[%clk 0:00:03.3]} 52. Rd6 {[%clk 0:01:02.1]} 52... Rg5 {[%clk
0:00:02]} 53. Bd4 {[%clk 0:01:01.8]} 53... Rg4 {[%clk 0:00:02.3]} 54. Bb6 {[%clk
0:01:01.9]} 54... Rg8 {[%clk 0:00:02.9]} 55. Rd4 {[%clk 0:01:01.5]} 55... Kb8
{[%clk 0:00:03.5]} 56. Rxc4 {[%clk 0:01:01.7]} 56... Rg5 {[%clk 0:00:03.5]} 57.
Rd4 {[%clk 0:01:01.7]} 57... Rg8 {[%clk 0:00:03.7]} 58. Rd2 {[%clk 0:00:58.8]}
58... Kc8 {[%clk 0:00:04.1]} 59. Rxg2 {[%clk 0:00:56.8]} 59... Rh8 {[%clk
0:00:04.5]} 60. Rd2 {[%clk 0:00:56.1]} 60... Rg8+ {[%clk 0:00:04.5]} 61. Kf2
{[%clk 0:00:56.5]} 61... Re8 {[%clk 0:00:05.3]} 62. Kf3 {[%clk 0:00:56.2]} 62...
Rf8+ {[%clk 0:00:05.8]} 63. Ke4 {[%clk 0:00:56.3]} 63... Re8+ {[%clk 0:00:06]}
64. Kd5 {[%clk 0:00:56.1]} 64... Kb8 {[%clk 0:00:06]} 65. Kd6 {[%clk 0:00:55.1]}
65... Kc8 {[%clk 0:00:05.2]} 66. Rd5 {[%clk 0:00:53.1]} 66... Kb8 {[%clk
0:00:05.6]} 67. Re5 {[%clk 0:00:53.3]} 67... Rg8 {[%clk 0:00:04.8]} 68. Kd7
{[%clk 0:00:53.3]} 68... Ka8 {[%clk 0:00:04.6]} 69. Re8+ {[%clk 0:00:53.2]}
69... Rxe8 {[%clk 0:00:03.2]} 70. Kxe8 {[%clk 0:00:54.1]} 70... Kb8 {[%clk
0:00:04]} 71. Kd7 {[%clk 0:00:53.3]} 71... Ka8 {[%clk 0:00:04.9]} 72. Bd4 {[%clk
0:00:52.2]} 72... Kb8 {[%clk 0:00:05.4]} 73. Be3 {[%clk 0:00:52.3]} 73... Ka8
{[%clk 0:00:06]} 74. Kc8 {[%clk 0:00:52.6]} 74... b5 {[%clk 0:00:04]} 75. axb6
{[%clk 0:00:53]} 1-0

[Event "Early-Titled-Tuesday-Blitz-October-10-2023"]
[Site "Chess.com"]
[Date "2023.10.10"]
[Round "2"]
[White "ViktoriyaTarasova"]
[Black "Lion-Al-Messi"]
[Result "0-1"]
[WhiteElo "2366"]
[BlackElo "2619"]
[TimeControl "180+1"]
[EndTime "8:18:30 PDT"]
[Termination "Lion-Al-Messi won by resignation"]

1. d4 {[%clk 0:03:00.9]} 1... d5 {[%clk 0:02:59.6]} 2. c4 {[%clk 0:03:00.3]}
2... c6 {[%clk 0:03:00]} 3. Nf3 {[%clk 0:02:59.5]} 3... Nf6 {[%clk 0:02:59]} 4.
Nc3 {[%clk 0:02:59.5]} 4... dxc4 {[%clk 0:02:59.1]} 5. a4 {[%clk 0:02:59.4]}
5... Bf5 {[%clk 0:02:58.4]} 6. Ne5 {[%clk 0:02:57.8]} 6... Nbd7 {[%clk
0:02:58.9]} 7. Nxc4 {[%clk 0:02:58.2]} 7... Nb6 {[%clk 0:02:57.8]} 8. Ne5 {[%clk
0:02:56]} 8... a5 {[%clk 0:02:58.1]} 9. f3 {[%clk 0:02:50.3]} 9... Nfd7 {[%clk
0:02:57.8]} 10. Nxd7 {[%clk 0:02:49.1]} 10... Nxd7 {[%clk 0:02:55]} 11. e4
{[%clk 0:02:48.6]} 11... Bg6 {[%clk 0:02:54.7]} 12. Be3 {[%clk 0:02:48.1]} 12...
Qb6 {[%clk 0:02:53.5]} 13. Qd2 {[%clk 0:02:47.2]} 13... e5 {[%clk 0:02:53.6]}
14. Rd1 {[%clk 0:02:31.5]} 14... Rd8 {[%clk 0:02:46.1]} 15. dxe5 {[%clk
0:02:14.7]} 15... Bc5 {[%clk 0:02:45.4]} 16. Bg5 {[%clk 0:02:02.8]} 16... f6
{[%clk 0:02:42]} 17. exf6 {[%clk 0:01:52.1]} 17... gxf6 {[%clk 0:02:42.9]} 18.
Bh6 {[%clk 0:01:47]} 18... Ke7 {[%clk 0:02:35.1]} 19. Qc2 {[%clk 0:00:43.5]}
19... Ne5 {[%clk 0:02:29.5]} 20. Rxd8 {[%clk 0:00:38.8]} 20... Rxd8 {[%clk
0:02:30.4]} 21. Be2 {[%clk 0:00:34.8]} 21... Bf2+ {[%clk 0:02:28.2]} 22. Kf1
{[%clk 0:00:35]} 22... Be3 {[%clk 0:02:26.5]} 23. Bxe3 {[%clk 0:00:10.1]} 23...
Qxe3 {[%clk 0:02:27.4]} 24. Nd1 {[%clk 0:00:10.7]} 24... Qd4 {[%clk 0:02:18.1]}
25. Qc3 {[%clk 0:00:08.1]} 25... Qd6 {[%clk 0:02:01.9]} 26. g3 {[%clk
0:00:08.2]} 26... f5 {[%clk 0:01:53.1]} 27. exf5 {[%clk 0:00:06.8]} 27... Bxf5
{[%clk 0:01:54]} 28. Ne3 {[%clk 0:00:07.1]} 28... Bh3+ {[%clk 0:01:53.9]} 29.
Kf2 {[%clk 0:00:07.7]} 29... Nd3+ {[%clk 0:01:37.1]} 30. Bxd3 {[%clk 0:00:07.1]}
30... Qxd3 {[%clk 0:01:38]} 31. Qxd3 {[%clk 0:00:07.7]} 31... Rxd3 {[%clk
0:01:37.8]} 32. Re1 {[%clk 0:00:08.4]} 32... Be6 {[%clk 0:01:28.3]} 33. f4
{[%clk 0:00:06.9]} 33... Rb3 {[%clk 0:01:24.8]} 34. Re2 {[%clk 0:00:06.9]} 34...
Kf7 {[%clk 0:01:21.8]} 35. f5 {[%clk 0:00:06.5]} 35... Bd7 {[%clk 0:01:22.1]}
36. g4 {[%clk 0:00:07]} 36... Rb4 {[%clk 0:01:22.4]} 37. Kg3 {[%clk 0:00:07]}
37... Rxa4 {[%clk 0:01:22.6]} 38. h4 {[%clk 0:00:06.8]} 38... Re4 {[%clk
0:01:20.1]} 39. Kf3 {[%clk 0:00:05.8]} 39... Re8 {[%clk 0:01:19.9]} 40. Rd2
{[%clk 0:00:06.1]} 40... Bc8 {[%clk 0:01:18.3]} 41. Kf4 {[%clk 0:00:06]} 41...
b5 {[%clk 0:01:17.6]} 42. Nc2 {[%clk 0:00:05.9]} 42... c5 {[%clk 0:01:17]} 43.
Ne3 {[%clk 0:00:05.6]} 43... a4 {[%clk 0:01:13.9]} 44. g5 {[%clk 0:00:05.9]}
44... c4 {[%clk 0:01:07.8]} 45. h5 {[%clk 0:00:06.2]} 45... Kg8 {[%clk 0:00:48]}
46. g6 {[%clk 0:00:06.7]} 46... Bb7 {[%clk 0:00:47.2]} 47. Nd5 {[%clk
0:00:05.8]} 47... Rf8 {[%clk 0:00:39]} 48. f6 {[%clk 0:00:05.3]} 48... Bxd5
{[%clk 0:00:38.2]} 49. f7+ {[%clk 0:00:05.8]} 49... Bxf7 {[%clk 0:00:37.5]} 50.
gxf7+ {[%clk 0:00:06.5]} 50... Rxf7+ {[%clk 0:00:37.9]} 51. Ke5 {[%clk 0:00:07]}
51... Re7+ {[%clk 0:00:38.3]} 52. Kf6 {[%clk 0:00:06.7]} 52... Re8 {[%clk
0:00:36.6]} 53. Rd7 {[%clk 0:00:06.2]} 53... Rf8+ {[%clk 0:00:34.8]} 54. Ke6
{[%clk 0:00:06.7]} 54... Ra8 {[%clk 0:00:16.9]} 55. Rb7 {[%clk 0:00:05.2]} 55...
c3 {[%clk 0:00:16.7]} 56. bxc3 {[%clk 0:00:04.6]} 56... a3 {[%clk 0:00:16.4]}
57. h6 {[%clk 0:00:05]} 57... a2 {[%clk 0:00:15.9]} 58. Rg7+ {[%clk 0:00:04.9]}
58... Kh8 {[%clk 0:00:15.9]} 0-1

[Event "Early-Titled-Tuesday-Blitz-October-10-2023"]
[Site "Chess.com"]
[Date "2023.10.10"]
[Round "2"]
[White "LeoLV10"]
[Black "hawes33"]
[Result "1-0"]
[WhiteElo "2580"]
[BlackElo "2279"]
[TimeControl "180+1"]
[EndTime "8:18:31 PDT"]
[Termination "LeoLV10 won by checkmate"]

1. e4 {[%clk 0:03:00.9]} 1... c5 {[%clk 0:02:54.6]} 2. Nf3 {[%clk 0:03:00.3]}
2... d6 {[%clk 0:02:54.5]} 3. d4 {[%clk 0:03:00.9]} 3... cxd4 {[%clk 0:02:55.4]}
4. Nxd4 {[%clk 0:03:01.8]} 4... Nf6 {[%clk 0:02:55.1]} 5. Nc3 {[%clk 0:03:02]}
5... a6 {[%clk 0:02:55]} 6. Bg5 {[%clk 0:03:02.7]} 6... e6 {[%clk 0:02:54.5]} 7.
f4 {[%clk 0:03:02.7]} 7... Be7 {[%clk 0:02:54.9]} 8. Qf3 {[%clk 0:03:02.4]} 8...
Qb6 {[%clk 0:02:53.1]} 9. O-O-O {[%clk 0:02:57.2]} 9... Nc6 {[%clk 0:02:52.7]}
10. Nb3 {[%clk 0:02:55.4]} 10... Bd7 {[%clk 0:02:52.4]} 11. g4 {[%clk
0:02:55.4]} 11... h6 {[%clk 0:02:52.3]} 12. Bxf6 {[%clk 0:02:50.2]} 12... gxf6
{[%clk 0:02:42.4]} 13. Kb1 {[%clk 0:02:31]} 13... Rc8 {[%clk 0:01:48.9]} 14. Be2
{[%clk 0:02:17.3]} 14... a5 {[%clk 0:01:40.3]} 15. Bb5 {[%clk 0:02:03]} 15...
Nb8 {[%clk 0:01:03.5]} 16. a4 {[%clk 0:01:40]} 16... Bc6 {[%clk 0:00:50]} 17.
Nd4 {[%clk 0:01:27.7]} 17... Nd7 {[%clk 0:00:45]} 18. f5 {[%clk 0:01:17.3]}
18... e5 {[%clk 0:00:39.2]} 19. Nb3 {[%clk 0:01:14.9]} 19... Nc5 {[%clk
0:00:39]} 20. Nd5 {[%clk 0:01:11.1]} 20... Qd8 {[%clk 0:00:27.5]} 21. Nxc5
{[%clk 0:01:07.1]} 21... dxc5 {[%clk 0:00:27.5]} 22. Nxf6+ {[%clk 0:01:07.4]}
22... Bxf6 {[%clk 0:00:28]} 23. Rxd8+ {[%clk 0:01:08.3]} 23... Rxd8 {[%clk
0:00:28.6]} 24. Qc3 {[%clk 0:01:03.6]} 24... Bxb5 {[%clk 0:00:26.6]} 25. axb5
{[%clk 0:01:04.5]} 25... b6 {[%clk 0:00:26.9]} 26. h4 {[%clk 0:01:00.2]} 26...
Rd4 {[%clk 0:00:25.6]} 27. Qe3 {[%clk 0:00:57.1]} 27... Rg8 {[%clk 0:00:18.9]}
28. c3 {[%clk 0:00:55.4]} 28... Rd6 {[%clk 0:00:16.2]} 29. Qf3 {[%clk
0:00:49.7]} 29... Ke7 {[%clk 0:00:15.6]} 30. Rh2 {[%clk 0:00:42]} 30... Ke8
{[%clk 0:00:15.9]} 31. Kc2 {[%clk 0:00:42.1]} 31... Ke7 {[%clk 0:00:15.8]} 32.
Kb3 {[%clk 0:00:34]} 32... Ke8 {[%clk 0:00:16]} 33. Kc4 {[%clk 0:00:34.3]} 33...
Ke7 {[%clk 0:00:16.9]} 34. Qg3 {[%clk 0:00:19.8]} 34... Ke8 {[%clk 0:00:14.7]}
35. Rg2 {[%clk 0:00:19.3]} 35... Be7 {[%clk 0:00:14.7]} 36. Qxe5 {[%clk
0:00:17.4]} 36... Kd7 {[%clk 0:00:14.8]} 37. f6 {[%clk 0:00:16.1]} 37... Bxf6
{[%clk 0:00:14.8]} 38. Qf5+ {[%clk 0:00:16.5]} 38... Ke7 {[%clk 0:00:14.6]} 39.
e5 {[%clk 0:00:16.1]} 39... Bxe5 {[%clk 0:00:13.1]} 40. Qxe5+ {[%clk 0:00:17]}
40... Re6 {[%clk 0:00:13.9]} 41. Qf5 {[%clk 0:00:17.5]} 41... Rd8 {[%clk
0:00:13.7]} 42. Qf4 {[%clk 0:00:16.1]} 42... f6 {[%clk 0:00:13.5]} 43. Qf3
{[%clk 0:00:16]} 43... Red6 {[%clk 0:00:13.3]} 44. Re2+ {[%clk 0:00:16.3]} 44...
Kf7 {[%clk 0:00:13.9]} 45. Qf5 {[%clk 0:00:16.6]} 45... Rg8 {[%clk 0:00:13.3]}
46. Qh7+ {[%clk 0:00:16.5]} 46... Rg7 {[%clk 0:00:13.8]} 47. Qxh6 {[%clk
0:00:16]} 47... Rxg4+ {[%clk 0:00:13.9]} 48. Kb3 {[%clk 0:00:15.6]} 48... c4+
{[%clk 0:00:14.5]} 49. Kc2 {[%clk 0:00:15.2]} 49... a4 {[%clk 0:00:13.8]} 50.
Qh5+ {[%clk 0:00:15.5]} 50... Rg6 {[%clk 0:00:13.3]} 51. Rg2 {[%clk 0:00:16]}
51... f5 {[%clk 0:00:13.7]} 52. Qxf5+ {[%clk 0:00:14.8]} 52... Rdf6 {[%clk
0:00:14.3]} 53. Qd7+ {[%clk 0:00:15.2]} 53... Kf8 {[%clk 0:00:14.3]} 54. Rxg6
{[%clk 0:00:15.7]} 54... Rxg6 {[%clk 0:00:14.7]} 55. h5 {[%clk 0:00:15.9]} 55...
Rg2+ {[%clk 0:00:14.6]} 56. Kc1 {[%clk 0:00:16.3]} 56... Rg1+ {[%clk 0:00:14.7]}
57. Kd2 {[%clk 0:00:16.9]} 57... Rg2+ {[%clk 0:00:15.3]} 58. Ke1 {[%clk
0:00:17.6]} 58... Rxb2 {[%clk 0:00:15.5]} 59. Qd8+ {[%clk 0:00:17.4]} 59... Kf7
{[%clk 0:00:15.6]} 60. Qc7+ {[%clk 0:00:18]} 60... Kf6 {[%clk 0:00:16]} 61.
Qxb6+ {[%clk 0:00:18]} 61... Kg5 {[%clk 0:00:16.9]} 62. Qg6+ {[%clk 0:00:16.2]}
62... Kh4 {[%clk 0:00:16.9]} 63. h6 {[%clk 0:00:16.6]} 63... a3 {[%clk
0:00:14.7]} 64. h7 {[%clk 0:00:16.9]} 64... a2 {[%clk 0:00:15.1]} 65. h8=Q#
{[%clk 0:00:16.8]} 1-0

[Event "Early-Titled-Tuesday-Blitz-October-10-2023"]
[Site "Chess.com"]
[Date "2023.10.10"]
[Round "2"]
[White "NovozhilovSemen"]
[Black "chessfatbear"]
[Result "1-0"]
[WhiteElo "2600"]
[BlackElo "2826"]
[TimeControl "180+1"]
[EndTime "8:18:32 PDT"]
[Termination "NovozhilovSemen won on time"]

1. d4 {[%clk 0:03:00.9]} 1... d5 {[%clk 0:02:57.2]} 2. c4 {[%clk 0:03:00.7]}
2... e6 {[%clk 0:02:57.5]} 3. Nf3 {[%clk 0:03:00.7]} 3... Nf6 {[%clk 0:02:57.2]}
4. g3 {[%clk 0:03:00.8]} 4... Bb4+ {[%clk 0:02:55.3]} 5. Bd2 {[%clk 0:03:00.7]}
5... Be7 {[%clk 0:02:55]} 6. Bg2 {[%clk 0:03:00.7]} 6... O-O {[%clk 0:02:54.9]}
7. O-O {[%clk 0:03:01.3]} 7... Nbd7 {[%clk 0:02:54.8]} 8. Qc2 {[%clk 0:03:01.4]}
8... c6 {[%clk 0:02:55.1]} 9. Rd1 {[%clk 0:03:01.2]} 9... b6 {[%clk 0:02:55.2]}
10. b3 {[%clk 0:03:00.2]} 10... Bb7 {[%clk 0:02:53.9]} 11. Nc3 {[%clk
0:02:53.5]} 11... Rc8 {[%clk 0:02:45.5]} 12. e4 {[%clk 0:02:52.6]} 12... dxe4
{[%clk 0:02:44.8]} 13. Nxe4 {[%clk 0:02:53.5]} 13... c5 {[%clk 0:02:41.3]} 14.
Nxf6+ {[%clk 0:02:53.3]} 14... Bxf6 {[%clk 0:02:32.2]} 15. Bc3 {[%clk
0:02:52.1]} 15... Bxf3 {[%clk 0:02:24.8]} 16. Bxf3 {[%clk 0:02:53]} 16... cxd4
{[%clk 0:02:23.3]} 17. Bxd4 {[%clk 0:02:53.9]} 17... Qe7 {[%clk 0:02:20.8]} 18.
Bg2 {[%clk 0:02:13.3]} 18... Rfd8 {[%clk 0:02:17.2]} 19. h4 {[%clk 0:02:11.8]}
19... a5 {[%clk 0:02:02.7]} 20. Rd2 {[%clk 0:02:04.2]} 20... Bxd4 {[%clk
0:01:43.1]} 21. Rxd4 {[%clk 0:02:05.1]} 21... Nc5 {[%clk 0:01:42.2]} 22. Rad1
{[%clk 0:02:04.7]} 22... Rxd4 {[%clk 0:01:41.1]} 23. Rxd4 {[%clk 0:02:05.6]}
23... Rd8 {[%clk 0:01:41.6]} 24. Qd2 {[%clk 0:02:05]} 24... Rxd4 {[%clk
0:01:39.5]} 25. Qxd4 {[%clk 0:02:05.5]} 25... f6 {[%clk 0:01:31.9]} 26. Qf4
{[%clk 0:02:02.2]} 26... Qd8 {[%clk 0:01:27.4]} 27. Qf3 {[%clk 0:02:02.5]} 27...
Kf8 {[%clk 0:01:10.1]} 28. Qc6 {[%clk 0:01:56.7]} 28... Ke7 {[%clk 0:01:05.2]}
29. Bf3 {[%clk 0:01:49.8]} 29... Qd6 {[%clk 0:00:58]} 30. Qa8 {[%clk 0:01:44.3]}
30... Qd8 {[%clk 0:00:42.7]} 31. Qa7+ {[%clk 0:01:43.5]} 31... Kf8 {[%clk
0:00:42.4]} 32. h5 {[%clk 0:01:41.9]} 32... Nd3 {[%clk 0:00:38.6]} 33. h6 {[%clk
0:01:36.9]} 33... gxh6 {[%clk 0:00:38.8]} 34. Qxh7 {[%clk 0:01:36.2]} 34... Qd4
{[%clk 0:00:36.6]} 35. Qxh6+ {[%clk 0:01:29.3]} 35... Ke7 {[%clk 0:00:36.1]} 36.
Qg7+ {[%clk 0:01:04.1]} 36... Kd6 {[%clk 0:00:35.7]} 37. Qf8+ {[%clk 0:01:03.5]}
37... Ke5 {[%clk 0:00:26]} 38. Qb8+ {[%clk 0:01:02.6]} 38... Kf5 {[%clk
0:00:21]} 39. g4+ {[%clk 0:00:59.2]} 39... Kg5 {[%clk 0:00:21]} 40. Qg3 {[%clk
0:00:56.9]} 40... Nf4 {[%clk 0:00:17.8]} 41. Kh2 {[%clk 0:00:38]} 41... e5
{[%clk 0:00:17.6]} 42. a3 {[%clk 0:00:33.5]} 42... e4 {[%clk 0:00:16.8]} 43. Bh1
{[%clk 0:00:32.9]} 43... Ne2 {[%clk 0:00:13.3]} 44. Qe3+ {[%clk 0:00:31.7]}
44... Qxe3 {[%clk 0:00:13.4]} 45. fxe3 {[%clk 0:00:31.6]} 45... f5 {[%clk
0:00:10.1]} 46. b4 {[%clk 0:00:25.7]} 46... axb4 {[%clk 0:00:04.8]} 47. axb4
{[%clk 0:00:26.6]} 47... Kxg4 {[%clk 0:00:05.4]} 48. c5 {[%clk 0:00:21.8]} 48...
bxc5 {[%clk 0:00:05.7]} 49. b5 {[%clk 0:00:17.1]} 1-0

[Event "Early-Titled-Tuesday-Blitz-October-10-2023"]
[Site "Chess.com"]
[Date "2023.10.10"]
[Round "2"]
[White "Fan_Of_Chucky"]
[Black "Khuslen2008"]
[Result "1-0"]
[WhiteElo "2521"]
[BlackElo "2313"]
[TimeControl "180+1"]
[EndTime "8:18:33 PDT"]
[Termination "Fan_Of_Chucky won by resignation"]

1. d4 {[%clk 0:02:59.1]} 1... Nf6 {[%clk 0:02:59.5]} 2. c4 {[%clk 0:03:00]} 2...
c5 {[%clk 0:02:59.4]} 3. d5 {[%clk 0:03:00]} 3... b5 {[%clk 0:02:59.6]} 4. cxb5
{[%clk 0:03:00.9]} 4... a6 {[%clk 0:03:00.1]} 5. e3 {[%clk 0:03:01.8]} 5... g6
{[%clk 0:02:58.7]} 6. Nc3 {[%clk 0:02:59.8]} 6... Bg7 {[%clk 0:02:57.9]} 7. Nf3
{[%clk 0:02:58.9]} 7... O-O {[%clk 0:02:58]} 8. a4 {[%clk 0:02:58.5]} 8... Bb7
{[%clk 0:02:58]} 9. e4 {[%clk 0:02:58.4]} 9... e6 {[%clk 0:02:58]} 10. Bc4
{[%clk 0:02:52.6]} 10... exd5 {[%clk 0:02:55.1]} 11. exd5 {[%clk 0:02:47.2]}
11... axb5 {[%clk 0:02:55.2]} 12. Bxb5 {[%clk 0:02:36.8]} 12... Qe7+ {[%clk
0:02:54.6]} 13. Be3 {[%clk 0:02:33.3]} 13... Ng4 {[%clk 0:02:50.9]} 14. Qd2
{[%clk 0:01:51.3]} 14... Nxe3 {[%clk 0:02:45.6]} 15. Qxe3 {[%clk 0:01:52.2]}
15... Re8 {[%clk 0:02:44.5]} 16. Qxe7 {[%clk 0:01:42.4]} 16... Bxc3+ {[%clk
0:02:43.5]} 17. bxc3 {[%clk 0:01:42.2]} 17... Rxe7+ {[%clk 0:02:43.6]} 18. Kd2
{[%clk 0:01:35.6]} 18... Bxd5 {[%clk 0:02:43.4]} 19. Rae1 {[%clk 0:01:29.4]}
19... Kf8 {[%clk 0:02:38.6]} 20. Ng5 {[%clk 0:01:17.1]} 20... Bxg2 {[%clk
0:02:28.3]} 21. Rxe7 {[%clk 0:01:03.8]} 21... Kxe7 {[%clk 0:02:27.7]} 22. Re1+
{[%clk 0:01:04.5]} 22... Kf8 {[%clk 0:02:01.5]} 23. Nxh7+ {[%clk 0:01:04.8]}
23... Kg7 {[%clk 0:02:01.7]} 24. Ng5 {[%clk 0:01:05.3]} 24... Nc6 {[%clk
0:02:00.6]} 25. f3 {[%clk 0:00:44.8]} 25... Rh8 {[%clk 0:01:46.8]} 26. Bxc6
{[%clk 0:00:16]} 26... dxc6 {[%clk 0:01:47.4]} 27. Ke3 {[%clk 0:00:16]} 27...
Rh5 {[%clk 0:01:34.6]} 28. h4 {[%clk 0:00:03.8]} 28... Rxh4 {[%clk 0:01:30.6]}
29. Rg1 {[%clk 0:00:02.9]} 29... f6 {[%clk 0:01:13.4]} 30. Ne6+ {[%clk
0:00:02.6]} 30... Kf7 {[%clk 0:01:12.8]} 31. Nf4 {[%clk 0:00:03.5]} 31... g5
{[%clk 0:01:03.1]} 32. Nxg2 {[%clk 0:00:03.3]} 32... Rxa4 {[%clk 0:01:03.6]} 33.
Ne1 {[%clk 0:00:03.4]} 33... Ke6 {[%clk 0:01:01.8]} 34. Kd3 {[%clk 0:00:03.8]}
34... Ra2 {[%clk 0:01:00.5]} 35. Nc2 {[%clk 0:00:03.9]} 35... Ra4 {[%clk
0:00:59.9]} 36. Rg4 {[%clk 0:00:03.8]} 36... Ra7 {[%clk 0:00:57.1]} 37. Ne3
{[%clk 0:00:03.8]} 37... Ra3 {[%clk 0:00:54.2]} 38. Rc4 {[%clk 0:00:02.9]} 38...
Kd6 {[%clk 0:00:51.3]} 39. Rg4 {[%clk 0:00:03.6]} 39... Ra1 {[%clk 0:00:49.5]}
40. f4 {[%clk 0:00:03.6]} 40... gxf4 {[%clk 0:00:41.6]} 41. Rxf4 {[%clk
0:00:04.5]} 41... Ke6 {[%clk 0:00:41]} 42. Rf5 {[%clk 0:00:05]} 42... Ra5 {[%clk
0:00:38.4]} 43. Kc4 {[%clk 0:00:04.6]} 43... Ra1 {[%clk 0:00:21.8]} 44. Rxc5
{[%clk 0:00:04.1]} 44... Re1 {[%clk 0:00:19.9]} 45. Nf5 {[%clk 0:00:04.5]} 45...
Kd7 {[%clk 0:00:18.5]} 46. Nd4 {[%clk 0:00:04.2]} 46... Re4 {[%clk 0:00:18]} 47.
Kd3 {[%clk 0:00:03]} 47... Rh4 {[%clk 0:00:17.7]} 48. Rf5 {[%clk 0:00:02.2]}
48... Ke7 {[%clk 0:00:17.1]} 49. Nxc6+ {[%clk 0:00:02.4]} 49... Ke6 {[%clk
0:00:17.6]} 50. Rf3 {[%clk 0:00:02.3]} 50... Ra4 {[%clk 0:00:16.1]} 51. Nd4+
{[%clk 0:00:03.2]} 51... Ke5 {[%clk 0:00:15.3]} 52. Rf5+ {[%clk 0:00:03.5]}
52... Kd6 {[%clk 0:00:14.9]} 53. Rxf6+ {[%clk 0:00:04.4]} 53... Kd5 {[%clk
0:00:15.3]} 54. Rf5+ {[%clk 0:00:05.2]} 54... Kd6 {[%clk 0:00:15.8]} 55. Rb5
{[%clk 0:00:05.8]} 55... Ra1 {[%clk 0:00:14.6]} 56. Rb4 {[%clk 0:00:06.7]} 1-0